Cogmind - Beta 13 X1 @@@ ROGUE MODE // 2023.06.24 @ 17:23:57 Player: Jay Result: Destroyed by X-62 Marksman with Gauss Rifle Performance ------------- Evolutions (2) 1000 Regions Visited (3) 600 Robots Destroyed (26) 130 Value Destroyed (987) 987 Prototype IDs (0) 0 Alien Tech Used (0) 0 Bonus (97) 97 TOTAL SCORE: 2814 Bonus ------- High Alert Combat Kills 97 Cogmind --------- Core Integrity 0/550 Matter 290/300 Energy 300/300 System Corruption 0% Temperature Cool (-100) Movement Treading (145) Location -8/Materials Parts ------- > --- POWER (1) -------- (None) > --- PROPULSION (2) --- Advanced Treads > --- UTILITY (4) ------ Cryofiber Web Compact Battery > --- WEAPON (4) ------- (None) > --- INVENTORY (5) ---- Ion Engine Compact Battery (200) Compact Battery (200) Peak State ------------ > --- POWER ------------ Light Nuclear Core > --- PROPULSION ------- Advanced Treads Advanced Treads > --- UTILITY ---------- Cryofiber Web Advanced Heat Sink Small Storage Unit Compact Matter Pod > --- WEAPON ----------- Heavy Laser Heavy Particle Cannon > --- INVENTORY -------- Ion Engine Advanced Treads Advanced Treads Compact Battery Hardened Medium Armor Plating [Rating: 29] Favorites ----------- Power Ion Engine Engine Ion Engine Power Core Light Nuclear Core Propulsion Light Treads Treads Light Treads Utility Small Storage Unit Device Cryofiber Web Storage Small Storage Unit Protection Hardened Medium Armor Plating Weapon Medium Laser Energy Gun Medium Laser Energy Cannon Heavy Particle Cannon Ballistic Gun Light Assault Rifle Build | -11 -10 -9 -8 ------- Run | Jun Mat Mat Mat Slots Evolved 4 | . . 2 2 Power . | . . . . Propulsion . | . . . . Utility 2 | . . 1 1 Weapon 2 | . . 1 1 Parts Attached 31 | 5 2 4 20 Power 5 | 1 . 1 3 Engine 3 | 1 . 1 1 Core 2 | . . . 2 Reactor . | . . . . Propulsion 8 | 1 1 . 6 Treads 8 | 1 1 . 6 Leg . | . . . . Wheel . | . . . . Hover . | . . . . Flight . | . . . . Utility 8 | 1 1 1 5 Device 4 | . 1 1 2 Storage 3 | 1 . . 2 Processor . | . . . . Hackware . | . . . . Protection 1 | . . . 1 Artifact . | . . . . Weapon 10 | 2 . 2 6 Energy Gun 6 | 2 . . 4 Energy Cannon 1 | . . . 1 Ballistic Gun 3 | . . 2 1 Ballistic Cannon . | . . . . Launcher . | . . . . Special Weapon . | . . . . Impact Weapon . | . . . . Slashing Weapon . | . . . . Piercing Weapon . | . . . . Special Melee Weapon . | . . . . Unidentified Prototypes . | . . . . Parts Lost 19 | . . . 19 Power 2 | . . . 2 Propulsion 5 | . . . 5 Utility 5 | . . . 5 Weapon 7 | . . . 7 Highest Loss Streak 7 | . . . 7 To Critical Strikes 1 | . . . 1 Average Slot Usage (%) 86 | . 88 94 81 Engine 7 | . 14 11 3 Core 2 | . . . 4 Treads 18 | . 22 22 15 Device 14 | . 8 17 14 Storage 14 | . 14 11 16 Energy Gun 18 | . 28 22 14 Energy Cannon 1 | . . . 2 Ballistic Gun 7 | . . 11 7 Naked Turns . | . . . . Heaviest Build 24 | 13 14 16 24 Greatest Support 44 | 20 40 40 44 Greatest Overweight (x) 7 | . . . 7 Average Overweight (x) . | . . . . Largest Inventory Capacity 8 | 8 8 8 8 Average Capacity 7 | 6 8 8 7 Most Carried 8 | 5 5 8 8 Average Carried 5 | 3 3 6 6 Final Capacity 8 | 8 8 8 5 Final Carried 8 | 3 4 8 3 Class Distribution -------------------- 54% | Mutant 45% | Gunner Dominant Class ---------------- Mutant | -10/Materials Gunner | -9/Materials Mutant | -8/Materials Resources | -11 -10 -9 -8 ----------- Run | Jun Mat Mat Mat Matter Collected 685 | 150 90 120 325 Remotely . | . . . . Salvage Created 981 | . 90 120 771 Parts 53 | . 6 10 37 Haulers Intercepted . | . . . . Recyclers Shooed . | . . . . Parts Field Recycled . | . . . . Retrieved Matter . | . . . . Parts Self-Destructed . | . . . . Prevented . | . . . . Kills | -11 -10 -9 -8 ------- Run | Jun Mat Mat Mat Combat Hostiles Destroyed 26 | . 2 5 19 Guns 20 | . 2 5 13 Cannons 6 | . . . 6 Classes Destroyed 6 | . 1 2 3 Swarmer 9 | . . 4 5 Grunt 12 | . 2 . 10 Brawler 1 | . . . 1 Protector 1 | . . . 1 Sentry 1 | . . 1 . Specialist 2 | . . . 2 Best Kill Streak 6 | . 1 4 6 Combat Bots Only 6 | . 1 4 6 Max Kills in Single Turn 1 | . 1 1 1 Gunslinging . | . . . . Exploded . | . . . . Melee . | . . . . Uniques/NPCs Destroyed . | . . . . Combat | -11 -10 -9 -8 -------- Run | Jun Mat Mat Mat Damage Taken 2981 | . 84 138 2759 Core 635 | . 39 39 557 Absorbed by Shields . | . . . . Regen/Repaired (Parts) 82 | . . . 82 Core Remaining (%) 91 | 100 84 90 . Volleys Fired 80 | . 12 8 60 Largest 4 | . 2 3 4 Hottest 178 | . 90 110 178 Shots Fired 185 | . 23 24 138 Gun 160 | . 23 24 113 Cannon 25 | . . . 25 Launcher . | . . . . Special . | . . . . Kinetic 56 | . . 8 48 Thermal 116 | . 23 16 77 Explosive . | . . . . Electromagnetic 13 | . . . 13 Robot Hit Streak 21 | . 5 7 21 Robot Miss Streak 7 | . 6 7 5 Penetration Max . | . . . . Secondary Targets 4 | . . 2 2 Max Gunslinging Chain 1 | . . 1 1 Shots Hit Robots 117 | . 11 15 91 Core Hits 53 | . 5 6 42 Critical Kills . | . . . . Critical Parts Destroyed . | . . . . Critical Strikes 2 | . . . 2 Burn 1 | . . . 1 Corrupt 1 | . . . 1 Melee Attacks . | . . . . Impact . | . . . . Slashing . | . . . . Piercing . | . . . . Sneak Attacks . | . . . . Combat Hostiles . | . . . . Follow-up Attacks . | . . . . Damage Inflicted 1967 | . 144 161 1662 Guns 1369 | . 144 161 1064 Cannons 536 | . . . 536 Explosions 57 | . . . 57 Melee . | . . . . Ramming 5 | . . . 5 Kinetic 516 | . . 43 473 Thermal 1338 | . 144 118 1076 Explosive . | . . . . Electromagnetic 108 | . . . 108 Impact . | . . . . Slashing . | . . . . Piercing . | . . . . Highest Corruption 1 | . . 1 . Average Corruption 1 | . . 1 . Corruption Purged . | . . . . Corruption Blocked . | . . . . Effects 1 | . . 1 . Energy Discharges 1 | . . 1 . Overload Shots . | . . . . Overflow Damage . | . . . . Projectiles . | . . . . Explosions . | . . . . Melee . | . . . . Knockbacks . | . . . . Impact . | . . . . Kinetic . | . . . . Secondary . | . . . . Self-Inflicted Damage . | . . . . Shots . | . . . . Rammed 1 | . . . 1 Targets Rammed 1 | . . . 1 Kicked . | . . . . Crushed . | . . . . Highest Temperature 370 | . 126 . 370 Average Temperature 117 | . 55 . 131 Received Heat Transfer 1152 | . 36 9 1107 Effects 1 | . . . 1 Interference 1 | . . . 1 Siege Activations . | . . . . Robots Corrupted . | . . . . Combat Hostiles . | . . . . Parts Fried . | . . . . Impact Corruptions . | . . . . Robots Melted . | . . . . Combat Hostiles . | . . . . Parts Melted 4 | . . 1 3 Heat Transferred 2652 | . 360 310 1982 Parts Sabotaged . | . . . . Parts Stolen . | . . . . Parts Stripped . | . . . . Power Chain Reactions 1 | . . . 1 Missiles Intercepted . | . . . . Alert | -11 -10 -9 -8 ------- Run | Jun Mat Mat Mat Peak Influence 451 | . 80 191 451 Initial 80 | . . 33 80 Average 181 | . 42 81 285 Maximum Alert Level 2 | . . . 2 Low Security (%) 62 | 100 100 100 31 Level 1 19 | . . . 35 Level 2 18 | . . . 33 Level 3 . | . . . . Level 4 . | . . . . Level 5 . | . . . . High Security . | . . . . Max Security . | . . . . Squads Dispatched 7 | . 1 . 6 Investigation 1 | . . . 1 Extermination . | . . . . Reinforcement 5 | . 1 . 4 Assault 1 | . . . 1 Garrison . | . . . . Intercept . | . . . . Searches Triggered . | . . . . Construction Impeded . | . . . . Haulers Reinforced . | . . . . Active Scanning Responses . | . . . . Cargo Convoy Interrupts . | . . . . Stealth | -11 -10 -9 -8 --------- Run | Jun Mat Mat Mat Distress Signals 1 | . 1 . . Communications Jammed . | . . . . Distress Signals . | . . . . Times Spotted 46 | . 11 5 30 Peak Tracking Total 5 | . 3 4 5 Tactical Retreats 3 | . 1 . 2 Traps | -11 -10 -9 -8 ------- Run | Jun Mat Mat Mat Traps Triggered 1 | . . 1 . Indirectly . | . . . . Trap Hack Attempts . | . . . . Triggered . | . . . . Disarmed . | . . . . Reprogrammed . | . . . . Reused . | . . . . Traps Extracted . | . . . . Installed . | . . . . Triggered . | . . . . Machines | -11 -10 -9 -8 ---------- Run | Jun Mat Mat Mat Machines Disabled 3 | . . . 3 Max in Single Turn 1 | . . . 1 Garrison Access 1 | . . . 1 Machines Repaired . | . . . . Machines Sabotaged . | . . . . Overloaded Fab Kills . | . . . . Hacking | -11 -10 -9 -8 --------- Run | Jun Mat Mat Mat Machines Accessed 3 | . . 1 2 Terminals 2 | . . 1 1 Fabricators . | . . . . Repair Stations 1 | . . . 1 Recycling Units . | . . . . Scanalyzers . | . . . . Garrison Access . | . . . . Total Hacks 18 | . . 5 13 Successful 15 | . . 5 10 Failed 3 | . . . 3 Catastrophic 1 | . . . 1 Database Lockouts . | . . . . Manual . | . . . . Terminals 8 | . . 5 3 Fabricators . | . . . . Repair Stations 10 | . . . 10 Recycling Units . | . . . . Scanalyzers . | . . . . Garrison Access . | . . . . Terminal Hacks 6 | . . 5 1 Record 3 | . . 2 1 Terminal Index 1 | . . 1 . Alert Level 1 | . . 1 . Locate Traps 1 | . . 1 . Fabricator Hacks . | . . . . Repair Station Hacks 9 | . . . 9 Scan Component 5 | . . . 5 Repair 4 | . . . 4 Recycling Unit Hacks . | . . . . Scanalyzer . | . . . . Garrison Access Hacks . | . . . . Unauthorized Hacks . | . . . . Terminals . | . . . . Fabricators . | . . . . Repair Stations . | . . . . Recycling Units . | . . . . Scanalyzers . | . . . . Garrison Access . | . . . . Data Cores Recovered . | . . . . Used . | . . . . Hacking Detections 3 | . . 1 2 Full Trace Events 2 | . . 1 1 Feedback Events . | . . . . Feedback Blocked . | . . . . Robot Schematics Acquired . | . . . . Robots Built . | . . . . Authchips . | . . . . Time . | . . . . Total Robot Build Rating . | . . . . Part Schematics Acquired . | . . . . Parts Built . | . . . . Authchips . | . . . . Time . | . . . . Total Part Build Rating . | . . . . Parts Repaired 4 | . . . 4 Time 134 | . . . 134 Parts Recycled . | . . . . Recycled Matter . | . . . . Retrieved Matter . | . . . . Retrieved Components . | . . . . Parts Scanalyzed . | . . . . Part Schematics Acquired . | . . . . Parts Damaged . | . . . . Bothacking | -11 -10 -9 -8 ------------ Run | Jun Mat Mat Mat Used RIF Installer . | . . . . Robots Hacked . | . . . . Non-combat . | . . . . Combat . | . . . . Robot Hacks Applied . | . . . . Relay Couplers Released . | . . . . Fabnet Peak Effective % . | . . . . Robots Rewired . | . . . . Allies Hacked . | . . . . Hacks Repelled . | . . . . Allies | -11 -10 -9 -8 -------- Run | Jun Mat Mat Mat Total Allies . | . . . . Largest Group . | . . . . Highest-Rated Group . | . . . . Highest-Rated Ally . | . . . . Total Orders . | . . . . Ally Attacks . | . . . . Total Damage . | . . . . Kills . | . . . . Allies Corrupted . | . . . . Allies Melted . | . . . . Intel | -11 -10 -9 -8 ------- Run | Jun Mat Mat Mat Robot Analysis Total . | . . . . Derelict Logs Recovered . | . . . . Drone Launches . | . . . . Drone Recoveries . | . . . . Exploration | -11 -10 -9 -8 ------------- Run | Jun Mat Mat Mat Turns Passed 1300 | 66 221 307 706 Spaces Moved 551 | 41 103 167 240 Core 16 | 14 . . 2 Treads 535 | 27 103 167 238 Legs . | . . . . Wheels . | . . . . Hover . | . . . . Flight . | . . . . Fastest Speed 50 | 50 160 160 145 Average Speed 155 | 122 160 160 156 Slowest Speed 400 | 160 160 160 400 Overloaded Moves . | . . . . Propulsion Burnouts . | . . . . Robots Hopped . | . . . . Cave-ins Triggered . | . . . . Exploration Rate (%) 16 | 4 21 18 22 Regions Visited 3 Branch Regions . Pre-discovered Areas . | . . . . Known Exits Taken . | . . . . Unknown Exits Taken 3 | 1 1 1 . Scrap Searched . | . . . . Spaces Dug . | . . . . Terrain Destroyed 6 | . . . 6 Melee . | . . . . Projectile 3 | . . . 3 AOE 3 | . . . 3 Terrain Rammed . | . . . . Walls Destroyed . | . . . . Machines Disabled . | . . . . Actions | -11 -10 -9 -8 --------- Run | Jun Mat Mat Mat Total 846 | 56 136 192 462 Wait 155 | 5 17 5 128 Move 548 | 40 102 166 240 Hop . | . . . . Pick Up 27 | 6 3 7 11 Fast Attach 5 | 2 . . 3 Attach 22 | 3 2 3 14 Detach . | . . . . Swap 4 | . . 1 3 Drop 4 | . . 2 2 Fire 80 | . 12 8 60 Melee . | . . . . Ram . | . . . . Kick . | . . . . Crush 1 | . . . 1 Escape Stasis . | . . . . Rewire . | . . . . Trap . | . . . . Miscellaneous . | . . . . Route ------- -11/Junkyard -10/Materials -9/Materials -8/Materials History --------- Turn | Location | Event 20 | -11/Junkyard | Discovered new exit (range 14) 67 | -11/Junkyard | Entered Materials 234 | -10/Materials | Discovered new exit (range 15) 288 | -10/Materials | Entered another Materials area 288 | -9/Materials | Evolved 2 slots: Utility x1, Weapon x1 586 | -9/Materials | Discovered new exit (range 5) 595 | -9/Materials | Entered another Materials area 595 | -8/Materials | Evolved 2 slots: Utility x1, Weapon x1 617 | -8/Materials | Build established: Gunner 879 | -8/Materials | Repaired Broken Hvy. EM Pulse Gun 879 | -8/Materials | Repaired Lgt. Treads 905 | -8/Materials | Repaired Lgt. Treads 1005 | -8/Materials | Lost 7 parts (1p2n1u3w) 1045 | -8/Materials | Repaired Cryofiber Web 1152 | -8/Materials | Lost 3 parts (2u1w) 1277 | -8/Materials | Core integrity fell below 50% 1287 | -8/Materials | Build established: Mutant 1295 | -8/Materials | Core integrity fell below 20% 1301 | -8/Materials | Destroyed by X-62 Marksman with Gauss Rifle Last Messages --------------- 01244_ Hpw. Shotgun destroyed. 01252_ Sml. Storage Unit destroyed. 01252_ Slug penetrates Wall. 01255_ Penetrated by Slug. 01261_ Slug penetrates Purification Channel. 01261_ Purification Channel disabled. 01264_ Penetrated by Slug. 01264_ Adv. Treads destroyed. 01267_ Slug penetrates Purification Channel. 01272_ ALERT: Suspicious intruders detected, dispatching Specialist reinforcements to area. 01276_ Lgt. Nuclear Core destroyed. 01280_ Penetrated by Slug. 01280_ Hrd. Medium Armor Plating destroyed. 01282_ Slug penetrates Wall. 01283_ Penetrated by Slug. 01291_ Slug penetrates Purification Channel. 01294_ Penetrated by Slug. 01298_ Adv. Treads destroyed. 01300_ Penetrated by Slug. Map ----- +----------------------------------------------------+ | ???????#"" """"" #???# #??? | | ???????#"T """"" #???# #??? | | ????????" """"" #???# #??? | | ????????## """ #???# #??? | | ??????#### / #???# #??? | | ??????#" #???# #??? | | ??????# #####+#### | | ??????# # # | | ??######## % ""# """ # | | ??# =[%# T"# """ ]# | | ??# %%!=#[ * # """ # | | ??#*[%*%%+% / # | | %+="="*!#=[% # """ # | | ###="R"*%#### # """ !# | | ??# """ ######## ##= """ # | | ??######## # ## # | | ?????????# + ########### | | ?????????# # #?????????? | | ?????????#""" # #?????????? | | ?????????#""" # #?????????? | | ?????????#""" # #?????????? | | ?????????# # #####?????? | | ?????????# # #???? | | ?????????########=% #####?????? | | ???????????????###+##########?? | | ???????????????# % o x @ #?? | | ???????????????# =""" " #?? | | ???????????????# """""""" x#?? | | ?????????????H?# "" #?? | | ???????????????# #?? | | ???????????????##############?? | | ??????????????????????????????? | | ??????????????????????????????? | | ??????????????????????????????? | | ??????????????????????????????? | | ??????????????????????????????? | | ??????????????????????????????? | | ??????????????????????????????? | | ??????????????????????????????? | | | | | | | | | | | | | | | | | | | | | | | +----------------------------------------------------+ Best States ------------- Heat Dissipation 50 Energy Generation 14 Energy Capacity 360 Matter Stores 450 Matter Capacity 450 Sight Range 16 Terrain Scan Density 10 Base Temperature (-) 100 Armor Coverage 225 Evasion (%) 50 Recoil Reduction 2 Item Schematics ----------------- None Robot Schematics ------------------ None Fabricated ------------ Nothing Alien Tech Used ----------------- None Achievements -------------- None Challenges ------------ None Game ------ Seed AblativeConstructSpoofer Manual? 0 Play Time 00:18:16 Cumulative 31.9 hours Start 2023.06.24 @ 17:01:42 End 2023.06.24 @ 17:23:57 Sessions 1 Manual Loads 0 Difficulty Rogue Special Mode None Game No. 53 Rogue 41 Adventurer 12 Explorer 0 Win Type - Total 0 Types 0/0/0/0/0/0/0/0/0 Lore% 13 Gallery% 23 Achievement% 17 Wizard Run 0 Options --------- ASCII 0 Keyboard 0 Movement Mouse Keybinds 0 Fullscreen 2 Font 18/TerminusBold Map View 76x50 Tactical HUD 1 Map Filters NONE Filters NONE Steam 1 RUN: 8e38f56e-d4f5-4750-8ea7-835dd71f0dde